fUST/lending_fUST_20251019
["ID","MTS","AMOUNT","RATE_DAILY","PERIOD"]
[391795065,1760832638795,-300.0,0.0003536,30]
[391795066,1760832638805,-300.0,0.0003536,30]
[391795067,1760832638815,-300.0,0.0003536,30]
[391795068,1760832638825,-422.0,0.0003536,30]
[391795069,1760832638835,-152.15912811,0.0003536,2]
[391795070,1760832638845,-422.0,0.00035415,30]
[391795071,1760832638855,-422.0,0.0003547,30]
[391795072,1760832638865,-422.0,0.00035524,30]
[391795073,1760832638875,-422.0,0.00035579,30]
[391795074,1760832638886,-422.0,0.00035634,30]
[391795075,1760832638901,-422.0,0.00035689,30]
[391795076,1760832638912,-422.0,0.00035744,30]
[391795077,1760832638922,-422.0,0.00035798,30]
[391795078,1760832638934,-422.0,0.00035853,30]
[391795079,1760832638944,-422.0,0.00035908,30]
[391795080,1760832639102,-422.0,0.00035963,30]
[391795081,1760832639115,-422.0,0.00036018,30]
[391795082,1760832639126,-422.0,0.00036072,30]
[391795083,1760832639135,-422.0,0.00036127,30]
[391795084,1760832639145,-422.0,0.00036182,30]
[391795085,1760832639155,-422.0,0.00036237,30]
[391795086,1760832639165,-422.0,0.00036292,30]
[391795087,1760832639174,-150.0,0.00036323,2]
[391795088,1760832639184,-422.0,0.00036346,30]
[391795089,1760832639193,-422.0,0.00036401,30]
[391795090,1760832639204,-422.0,0.00036456,30]
[391795091,1760832639213,-422.0,0.00036511,30]
[391795092,1760832639223,-422.0,0.00036565,30]
[391795093,1760832639233,-428.99472955,0.0003662,30]
[391795094,1760832639242,-185.940091,0.00036893,120]
[391795095,1760832639253,-287.24118119,0.00037,120]
[391795096,1760832639263,-362.0,0.00037375,7]
[391795097,1760832639272,-411.0,0.00037377,2]
[391795098,1760832639283,-500.0,0.00038,5]
[391795099,1760832639296,-180.00641475,0.00038,2]
[391795100,1760832639305,-363.0,0.00038081,2]
[391795101,1760832639315,-1000.0,0.00038082,7]
[391795102,1760832639324,-362.0,0.00038102,2]
[391795103,1760832639335,-362.0,0.0003843,7]
[391795104,1760832639344,-362.0,0.00038434,2]
[391795105,1760832639353,-2997.58812108,0.000385,120]
[391795106,1760832639363,-200.0,0.00038625,120]
[391795107,1760832639373,-637.01559762,0.00038815,2]
[391795108,1760832639382,-1146.62807572,0.00038815,2]
[391795109,1760832639392,-1631.445633,0.000389,28]
[391795110,1760832639401,-1000.0,0.00038904,7]
[391795111,1760832639411,-9999.96999991,0.00039,120]
[391795112,1760832639420,-160.0,0.00039,120]
[391795113,1760832639429,-451.84615924,0.00039134,2]
[391795114,1760832639439,-363.0,0.00039181,2]
[391795115,1760832639449,-9137.26713336,0.00039182,3]
[391795116,1760832639458,-362.0,0.00039183,2]
[391795117,1760832639467,-451.84615923,0.00039187,2]
[391795118,1760832639476,-1999.0,0.00039191,120]
[391795119,1760832639486,-8791.21499283,0.00039192,2]
[391795120,1760832639496,-5000.0,0.000392,120]
[391795121,1760832639505,-489.56,0.000392,2]
[391795122,1760832639515,-614.89,0.00039224,3]
[391795123,1760832639524,-307.44,0.00039224,3]
[391795124,1760832639533,-153.72,0.00039224,3]
[391795125,1760832639543,-461.19,0.00039224,3]
[391795126,1760832639553,-18274.5342667,0.00039224,3]
[391795127,1760832639563,-5050.7786472,0.00039227,2]
[391795128,1760832639572,-1041.8613558,0.00039227,2]
[391795129,1760832639581,-1305.4069586,0.00039227,2]
[391795130,1760832639591,-73098.1370669,0.00039234,3]
[391795131,1760832639601,-451.84615923,0.00039239,2]
[391795132,1760832639611,-205.36994842,0.00039243,2]
[391795133,1760832639620,-370000.0,0.00039244,2]
[391795134,1760832639629,-451.84615923,0.00039292,2]
[391795135,1760832639638,-4118.32,0.000393,14]
[391795136,1760832639647,-1643.8158,0.0003934,13]
[391795137,1760832639657,-150.0,0.00039343,2]
[391795138,1760832639666,-451.84615923,0.00039344,2]
[391795139,1760832639675,-1000.0,0.0003936,13]
[391795140,1760832639685,-1000.0,0.0003938,13]
[391795141,1760832639694,-1167.214609,0.0003938,13]
[391795142,1760832639704,-1000.0,0.000394,13]
[391795143,1760832639713,-1000.0,0.000394,13]
[391795144,1760832639723,-151.0,0.000394,16]
[391795145,1760832639732,-151.0,0.000394,16]
[391795146,1760832639741,-151.0,0.000394,12]
[391795147,1760832639751,-362.0,0.00039417,2]
[391795148,1760832639760,-27411.8014001,0.00039424,3]
[391795149,1760832639770,-54823.6028002,0.00039434,3]
[391795150,1760832639780,-375268.2622,0.00039444,7]
[391795152,1760832639790,-8791.21499283,0.00039546,2]
[391795153,1760832639807,-194.05,0.00039621,2]
[391795155,1760832639818,-350.526586,0.00039654,2]
[391795156,1760832639827,-363.0,0.00039658,7]
[391795157,1760832639836,-158.140581,0.00039726,2]
[391795158,1760832639846,-158.14058,0.00039726,2]
[391795159,1760832639855,-1000.0,0.00039726,7]
[391795160,1760832639865,-362.0,0.00039775,2]
[391795161,1760832639874,-151.0,0.000398,15]
[391795162,1760832639884,-151.0,0.000399,18]
[391795163,1760832639894,-8791.21499283,0.000399,2]
[391795164,1760832639903,-7671.31862471,0.000399,2]
[391795165,1760832639912,-363.0,0.00039902,2]
[391795166,1760832639921,-2038.44991238,0.00039984,2]
[391795167,1760832639931,-221.23451577,0.00039999,6]
[391795168,1760832639940,-151.0,0.00039999,120]
[391795169,1760832639949,-251.33917175,0.00039999,120]
[391795170,1760832639958,-250.0,0.00039999,120]
[391795171,1760832639967,-1000.0,0.00039999,120]
[391795173,1760832639977,-151.0,0.00039999,120]
[391795175,1760832639986,-1000.0,0.00039999,120]
[391795177,1760832639996,-151.0,0.00039999,120]
[391795179,1760832640005,-151.0,0.00039999,120]
[391795181,1760832640015,-414.0,0.00039999,120]
[391795183,1760832640024,-151.0,0.00039999,120]
[391795184,1760832640033,-250.0,0.00039999,120]
[391795185,1760832640042,-3017.07363452,0.00039999,60]
[391795188,1760832640051,-151.0,0.00039999,120]
[391795191,1760832640060,-151.0,0.00039999,120]
[391795194,1760832640070,-429.318,0.00039999,120]
[391795197,1760832640079,-246.92825094,0.00039999,120]
[391795200,1760832640088,-17300.0,0.00039999,120]
[391795203,1760832640098,-250.0,0.00039999,120]
[391795206,1760832640107,-151.0,0.00039999,120]
[391795209,1760832640116,-153.79595039,0.00039999,120]
[391795212,1760832640126,-1353.91241369,0.00039999,120]
[391795215,1760832640135,-445.202766,0.00039999,120]
[391795218,1760832640144,-151.0,0.00039999,120]
[391795221,1760832640153,-250.0,0.00039999,120]
[391795224,1760832640162,-162.24895653,0.00039999,120]
[391795227,1760832640172,-162.81738582,0.00039999,120]
[391795230,1760832640182,-461.67526834,0.00039999,120]
[391795233,1760832640191,-250.0,0.00039999,120]
[391795236,1760832640200,-478.75725327,0.00039999,120]
[391795239,1760832640210,-250.0,0.00039999,120]
[391795242,1760832640219,-496.47127164,0.00039999,120]
[391795245,1760832640231,-151.0,0.00039999,120]
[391795248,1760832640241,-250.0,0.00039999,120]
[391795251,1760832640250,-514.84070869,0.00039999,120]
[391795254,1760832640260,-533.88981491,0.00039999,120]
[391795258,1760832640269,-250.0,0.00039999,120]
[391795261,1760832640281,-553.64373807,0.00039999,120]
[391795264,1760832640291,-1888.0,0.00039999,60]
[391795268,1760832640306,-250.0,0.00039999,120]
[391795270,1760832640315,-574.12855637,0.00039999,120]
[391795272,1760832640326,-447.21602531,0.00039999,60]
[391795274,1760832640336,-250.0,0.00039999,120]
[391795276,1760832640345,-595.37131296,0.00039999,120]
[391795278,1760832640355,-250.0,0.00039999,120]
[391795280,1760832640365,-617.40005154,0.00039999,120]
[391795282,1760832640376,-300.0,0.00039999,120]
[391795284,1760832640385,-250.0,0.00039999,120]
[391795286,1760832640395,-640.24385345,0.00039999,120]
[391795288,1760832640404,-250.0,0.00039999,120]
[391795290,1760832640414,-663.93287602,0.00039999,120]
[391795292,1760832640424,-250.0,0.00039999,120]
[391795294,1760832640435,-688.49839244,0.00039999,120]
[391795296,1760832640444,-250.0,0.00039999,120]
[391795298,1760832640454,-713.97283296,0.00039999,120]
[391795300,1760832640463,-740.38982778,0.00039999,120]
[391795302,1760832640473,-767.7842514,0.00039999,120]
[391795304,1760832640482,-796.19226871,0.00039999,120]
[391795306,1760832640491,-825.65138265,0.00039999,120]
[391795308,1760832640500,-1174674.08447702,0.0004,7]
[391795321,1760832640963,-28200.0,0.0004,7]
[391795402,1760833629130,-150.0,0.00025205,2]
[391795403,1760833629153,-172.5,0.00025805,2]
[391795404,1760833629175,-180.00000001,0.00026405,2]
[391795405,1760833629195,-402.78104431,0.000279,2]
[391795406,1760833629224,-167.29,0.00029256,2]
[391795407,1760833629250,-334.58,0.00031916,2]
[391795408,1760833629274,-501.88,0.00034575,2]
[391795409,1760833629296,-185.409303,0.00035189,60]
[391795410,1760833629316,-2347.9913498,0.00035267,2]
[391795411,1760833629335,-411.0,0.00035585,2]
[391795412,1760833629356,-666.0,0.00035677,2]
[391795413,1760833629377,-160.0,0.00037019,3]
[391795414,1760833629400,-669.17,0.00037235,2]
[391795415,1760833629423,-168.0,0.00037947,2]
[391795416,1760833629443,-900.0,0.00038082,7]
[391795417,1760833629464,-168.0,0.00038085,2]
[391795418,1760833629484,-168.0,0.0003814,2]
[391795419,1760833629504,-160.0,0.00038302,4]
[391795420,1760833629523,-283.7348362,0.00038302,5]
[391795421,1760833629544,-200.0,0.00038436,120]
[391795422,1760833629568,-168.0,0.0003851,2]
[391795423,1760833629587,-411.0,0.00038585,2]
[391795424,1760833629608,-200.0,0.00038675,120]
[391795425,1760833629629,-200.0,0.00038797,120]
[391795426,1760833629651,-168.0,0.00038806,2]
[391795427,1760833629670,-900.0,0.00038904,7]
[391795428,1760833629689,-500.0,0.00039,30]
[391795429,1760833629709,-500.0,0.00039,30]
[391795430,1760833629730,-3181.89291011,0.00039291,2]
[391795431,1760833629750,-280.82818936,0.00039291,2]
[391795432,1760833629770,-505.49074084,0.00039385,2]
[391795433,1760833629790,-173.2851303,0.00039626,2]
[391795434,1760833629809,-5000.0,0.00039723,30]
[391795435,1760833629828,-5000.0,0.00039723,30]
[391795436,1760833629848,-4232.68,0.00039723,30]
[391795437,1760833629868,-900.0,0.00039726,7]
[391795438,1760833629888,-264.65923264,0.0003979,2]
[391795439,1760833629908,-19832.96879224,0.000398,2]
[391795440,1760833629928,-264.65923264,0.00039818,2]
[391795441,1760833629951,-168.0,0.0003982,2]
[391795442,1760833629971,-264.65923264,0.00039845,2]
[391795443,1760833629991,-264.65923264,0.00039873,2]
[391795444,1760833630011,-491.52,0.00039879,3]
[391795445,1760833630031,-245.76,0.00039879,3]
[391795446,1760833630051,-737.32,0.00039879,3]
[391795447,1760833630073,-4599.45722191,0.00039879,3]
[391795448,1760833630094,-36795.6577753,0.0003988,3]
[391795449,1760833630114,-1999.0,0.00039888,120]
[391795450,1760833630133,-99999.999999,0.00039889,120]
[391795451,1760833630152,-200.0,0.0003989,10]
[391795452,1760833630173,-227.766854,0.0003989,10]
[391795453,1760833630193,-210871.19892306,0.0003989,2]
[391795471,1760833718746,150.999998,0.00021,2]
[391795472,1760833719360,500.0,0.0002,2]
[391795473,1760833721121,1000.0,0.000235,2]
[391795481,1760833780795,359.411127,0.00013699,2]
[391795482,1760833781000,359.411127,0.00020187,2]
[391795488,1760833802248,300.0,0.00024141,2]
[391795489,1760833802592,487.8351203,0.00024141,2]
[391795490,1760833802616,712.1648797,0.00024141,2]
[391795492,1760833808145,178.48,0.00024132,2]
[391795539,1760833832408,-586.40134067,0.00024142,2]
[391795556,1760833838157,-61753.77684042,0.00024142,2]
[391795557,1760833838168,-173.2851303,0.0002606,2]
[391795558,1760833838178,-192.78453705,0.0002616,2]
[391795559,1760833838188,-359.411127,0.00026676,2]
[391795560,1760833838198,-161.86,0.00029614,2]
[391795561,1760833838207,-2591.67238768,0.0003,3]
[391795562,1760833838217,-1189.0,0.0003,45]
[391795563,1760833838227,-323.73,0.00032306,2]
[391795564,1760833838236,-200.0,0.00032355,120]
[391795565,1760833838245,-359.411127,0.00033165,2]
[391795566,1760833838255,-264.65923264,0.00033879,2]
[391795567,1760833838264,-245.76,0.00033969,3]
[391795568,1760833838273,-2000.0,0.00033979,2]
[391795569,1760833838283,-29946.85525143,0.00033979,2]
[391795570,1760833838297,-189.5913888,0.00033979,2]
[391795571,1760833838307,-1400.04522313,0.00033979,2]
[391795572,1760833838316,-5908.78533045,0.00033979,2]
[391795573,1760833838326,-10704.78603085,0.00033979,2]
[391795574,1760833838337,-652.64378413,0.00033979,2]
[391795575,1760833838347,-203.4235005,0.00033979,2]
[391795576,1760833838357,-2920.0,0.00033979,2]
[391795577,1760833838366,-10747.14736084,0.00033979,2]
[391795578,1760833838375,-385.70784611,0.00033979,2]
[391795579,1760833838385,-1445.87279266,0.00033979,2]
[391795580,1760833838395,-201.79425047,0.00033979,2]
[391795581,1760833838404,-3153.95038712,0.00033979,2]
[391795582,1760833838414,-166.94066072,0.00033979,2]
[391795583,1760833838423,-365.44240343,0.00033979,2]
[391795584,1760833838433,-100463.51233001,0.00033979,2]
[391795585,1760833838442,-150.67495818,0.00033979,2]
[391795586,1760833838452,-259.1112089,0.00033979,2]
[391795587,1760833838462,-3774.02654877,0.00033979,2]
[391795588,1760833838471,-27026.00095714,0.00033979,2]
[391795589,1760833838480,-440.6,0.00034,2]
[391795590,1760833838490,-7578.31,0.00034,14]
[391795591,1760833838609,-485.59,0.00034998,2]
[391795592,1760833838619,-491.52,0.00035339,3]
[391795593,1760833838629,-411.0,0.00035499,2]
[391795594,1760833838640,-166.70427675,0.00037125,3]
[391795595,1760833838650,-647.45,0.00037691,2]
[391795596,1760833838659,-160.0,0.00037832,2]
[391795597,1760833838668,-200.0,0.00038213,120]
[391795598,1760833838678,-700.0,0.00038356,7]
[391795599,1760833838687,-411.0,0.00038499,2]
[391795600,1760833838697,-13221.97919484,0.000389,2]
[391795601,1760833838707,-74984.78719534,0.00039,30]
[391795602,1760833838717,-211.92108182,0.00039,120]
[391795603,1760833838728,-700.0,0.00039178,7]
[391795604,1760833838737,-13221.97919482,0.000394,2]
[391795605,1760833838746,-359.411127,0.00039654,2]
[391795606,1760833838755,-1999.0,0.00039888,120]
[391795607,1760833838765,-265.76332504,0.00039889,120]
[391795608,1760833838774,-159128.80107694,0.0003989,2]
[391795609,1760833838784,-7671.31862471,0.000399,2]
[391795610,1760833838795,-13221.97919482,0.000399,2]
[391795611,1760833838804,-168.0,0.00039951,2]
[391795612,1760833838814,-156.27263,0.0003999,2]
[391795613,1760833838823,-158.14058,0.0003999,2]
[391795614,1760833838832,-150.0,0.00039999,2]
[391795615,1760833838842,-553.64373807,0.00039999,7]
[391795616,1760833838852,-574.12855637,0.00039999,7]
[391795617,1760833838862,-595.37131296,0.00039999,7]
[391795618,1760833838871,-617.40005154,0.00039999,7]
[391795619,1760833838883,-640.24385345,0.00039999,7]
[391795620,1760833838892,-663.93287602,0.00039999,7]
[391795621,1760833838901,-688.49839244,0.00039999,7]
[391795622,1760833838911,-713.97283296,0.00039999,7]
[391795623,1760833838920,-740.38982778,0.00039999,7]
[391795624,1760833838929,-767.7842514,0.00039999,7]
[391795625,1760833838939,-796.19226871,0.00039999,7]
[391795626,1760833838950,-825.65138265,0.00039999,7]
[391795627,1760833838959,-700.0,0.0004,7]
[391795628,1760833838969,-294371.59897806,0.0004,7]
[391795629,1760833838980,-651.42022479,0.0004,120]
[391795630,1760833838990,-379105.41615872,0.0004,7]
[391795631,1760833839437,-159861.25542218,0.0004,7]
[391795670,1760833840383,-737.28,0.00033969,3]
[391795672,1760833840393,-179164.54710961,0.0004,7]
[391795682,1760833846475,-16520.66298699,0.0004,7]
[391795711,1760834223043,417.15472785,0.00024142,2]
[391795735,1760834669876,500.0,0.00033997,120]
[391795736,1760834670118,500.0,0.00033997,120]
[391795737,1760834670379,500.0,0.00033997,120]
[391795738,1760834670601,500.0,0.00033997,120]
[391795739,1760834670880,500.0,0.00033997,120]
[391795740,1760834671164,500.0,0.00033997,120]
[391795741,1760834671407,500.0,0.00033997,120]
[391795742,1760834671657,500.0,0.00033997,120]
[391795743,1760834671914,500.0,0.00033997,120]
[391795744,1760834672163,496.87031152,0.00033997,120]
[391795745,1760834851134,-300.0,0.00028299,2]
[391795746,1760834851154,-167.98528681,0.000283,2]
[391795747,1760834851176,-514.51824219,0.000283,2]
[391795748,1760834851195,-270.51292068,0.000283,2]
[391795749,1760834851214,-164.06131556,0.000283,2]
[391795750,1760834851234,-211.09618554,0.000283,2]
[391795751,1760834851253,-185.51461499,0.000283,2]
[391795752,1760834851272,-160.0,0.000283,2]
[391795753,1760834851290,-164.92863628,0.000283,2]
[391795754,1760834851309,-166.66,0.000283,7]
[391795755,1760834851328,-166.66,0.00028574,7]
[391795756,1760834851349,-514.51824219,0.000286,2]
[391795757,1760834851380,-211.09618554,0.000286,2]
[391795758,1760834851400,-185.51461499,0.000286,2]
[391795759,1760834851420,-164.92863628,0.000286,2]
[391795760,1760834851439,-3750.99810914,0.000286,2]
[391795761,1760834851461,-166.68,0.00028848,7]
[391795762,1760834851481,-514.51824219,0.000289,2]
[391795763,1760834851501,-185.51461499,0.000289,2]
[391795764,1760834851522,-514.51824219,0.000292,2]
[391795765,1760834851545,-514.51824219,0.000294,2]
[391795766,1760834851569,-200.0,0.00032809,120]
[391795767,1760834851589,-200.0,0.00033642,120]
[391795768,1760834851609,-846.1878918,0.00033767,2]
[391795769,1760834851632,-150.0,0.00033978,2]
[391795770,1760834851651,-595.75769849,0.00033979,4]
[391795771,1760834851671,-380.0,0.00034358,2]
[391795772,1760834851691,-200.0,0.00035263,120]
[391795773,1760834851711,-200.0,0.00036021,120]
[391795774,1760834851731,-200.0,0.00036432,120]
[391795775,1760834851753,-150.0,0.00036434,2]
[391795776,1760834851772,-300.0,0.00036718,7]
[391795777,1760834851798,-411.0,0.00037085,2]
[391795778,1760834851817,-600.0,0.00038356,7]
[391795779,1760834851844,-168.0,0.00038612,2]
[391795780,1760834851865,-200.0,0.00038666,120]
[391795781,1760834851886,-1298.48747683,0.0003899,2]
[391795782,1760834851906,-500.0,0.00039,30]
[391795783,1760834851925,-600.0,0.00039178,7]
[391795784,1760834851945,-200.0,0.00039253,120]
[391795785,1760834851966,-897.75155573,0.00039344,2]
[391795786,1760834851989,-450.0,0.00039458,12]
[391795787,1760834852012,-200.0,0.00039552,120]
[391795788,1760834852035,-500.0,0.000397,120]
[391795789,1760834852055,-10000.0,0.000397,120]
[391795790,1760834852078,-173.2851303,0.000397,2]
[391795791,1760834852097,-206.2615849,0.0003973,2]
[391795792,1760834852120,-286.34,0.00039746,2]
[391795793,1760834852140,-1000.0,0.000398,30]
[391795794,1760834852161,-1000.0,0.000398,60]
[391795795,1760834852181,-1000.0,0.000398,90]
[391795796,1760834852201,-4407.32639828,0.000398,2]
[391795797,1760834852221,-4407.32639827,0.0003985,2]
[391795798,1760834852242,-188.0,0.00039862,2]
[391795799,1760834852262,-17707.9103044,0.0003989,3]
[391795800,1760834852283,-1999.0,0.00039899,120]
[391795801,1760834852307,-101919.52322925,0.000399,2]
[391795838,1760835032391,-150.0,0.00036596,2]
[391795840,1760835032402,-150.0,0.00037085,2]
[391795842,1760835032413,-204.4370718,0.00037085,2]
[391795845,1760835032425,-206.5629282,0.00037085,2]
[391795847,1760835032435,-500.0,0.00038356,7]
[391795849,1760835032445,-50.4701251,0.00039178,7]
[391795887,1760835038293,-449.5298749,0.00039178,7]
[391795888,1760835038303,-168.0,0.00039576,2]
[391795889,1760835038313,-150.0,0.000398,120]
[391795890,1760835038323,-1999.0,0.00039899,120]
[391795891,1760835038332,-805.63109519,0.00039899,2]
[391795892,1760835038346,-663.47770424,0.00039899,2]
[391795893,1760835038356,-1469.10879942,0.000399,2]
[391795894,1760835038366,-13232.91349658,0.000399,2]
[391795895,1760835038855,-18104.1,0.000399,2]
[391795906,1760835043423,-1717.80172808,0.000399,2]
[391795911,1760835190847,1167.34,0.00024142,2]
[391795912,1760835373825,153.69168577,0.00024,2]
[391795917,1760835912206,4617.02,0.00024142,2]
[391795918,1760836041539,200.0,0.00024,7]
[391795919,1760836172167,-200.0,0.00024142,3]
[391795920,1760836172189,-1502.23946455,0.0003258,2]
[391795921,1760836172209,-187.161053,0.00033217,2]
[391795922,1760836172229,-3508.0,0.00034001,60]
[391795923,1760836172249,-500.0,0.00035259,7]
[391795924,1760836172269,-21903.22506352,0.0003526,7]
[391795958,1760836232624,-455.36,0.00035259,120]
[391796215,1760836238511,-44.64,0.00035259,120]
[391796216,1760836238522,-5146.77493648,0.0003526,7]
[391796217,1760836238532,-9.04191863,0.00035333,120]
[391796218,1760836238545,-176.89817337,0.00035333,120]
[391796219,1760836238555,-200.0,0.000361,2]
[391796220,1760836238565,-150.0,0.00036665,2]
[391796221,1760836238575,-411.0,0.00037711,2]
[391796222,1760836238586,-356.66585423,0.00038,2]
[391796223,1760836238596,-500.0,0.00038356,7]
[391796224,1760836238606,-265.76332504,0.00038356,120]
[391796225,1760836238615,-362.0,0.00038969,2]
[391796226,1760836238625,-500.0,0.00039178,7]
[391796227,1760836238635,-151.0,0.000395,13]
[391796228,1760836238644,-362.0,0.00039534,7]
[391796229,1760836238654,-1378.4445102,0.00039757,2]
[391796230,1760836238664,-362.0,0.00039778,2]
[391796231,1760836238674,-235.57731646,0.00039789,2]
[391796232,1760836238686,-254.12561668,0.00039789,2]
[391796233,1760836238695,-362.80461105,0.00039799,120]
[391796234,1760836238707,-1636.19538895,0.00039799,120]
[391796235,1760836238717,-500.0,0.00039799,120]
[391796236,1760836238727,-500.0,0.00039799,120]
[391796237,1760836238738,-500.0,0.00039799,120]
[391796238,1760836238759,-500.0,0.00039799,120]
[391796239,1760836238781,-280.97336546,0.00039799,120]
[391796284,1760836723519,287.528901,0.00013699,2]
[391796285,1760836723717,287.528901,0.00020187,2]
[391796287,1760837249158,-540.0,0.00025,30]
[391796288,1760837249180,-287.528901,0.00026676,2]
[391796289,1760837249201,-167.98528681,0.000284,2]
[391796290,1760837249223,-583.71777961,0.000284,2]
[391796291,1760837249244,-169.64388921,0.000284,2]
[391796292,1760837249264,-337.87399475,0.00028699,2]
[391796293,1760837252085,-862.12600525,0.00028699,2]
[391796294,1760837252106,-583.71777961,0.000287,2]
[391796295,1760837252125,-169.64388921,0.000287,2]
[391796296,1760837252150,-300.0,0.00028999,2]
[391796297,1760837252170,-583.71777961,0.00029,2]
[391796298,1760837252189,-583.71777961,0.000292,2]
[391796299,1760837252210,-5832.04451428,0.000292,2]
[391796300,1760837252233,-583.71777961,0.000295,2]
[391796301,1760837252255,-377.1,0.00029505,2]
[391796302,1760837252275,-1085.53,0.00031,2]
[391796303,1760837252294,-1085.53,0.00031174,2]
[391796304,1760837252312,-420.0,0.00031287,2]
[391796305,1760837252336,-754.2,0.00032187,2]
[391796306,1760837252357,-271.31114459,0.00032877,2]
[391796307,1760837252377,-287.528901,0.00033165,2]
[391796308,1760837252398,-180.0,0.00033755,2]
[391796309,1760837252420,-1131.3,0.00034869,2]
[391796310,1760837252440,-398.52,0.0003599,3]
[391796311,1760837252461,-500.0,0.00035998,2]
[391796312,1760837252481,-500.0,0.00035998,2]
[391796313,1760837252500,-434.04048741,0.00035998,2]
[391796314,1760837252520,-1999.0,0.00035999,120]
[391796315,1760837252539,-26393.35732502,0.00036,5]
[391796323,1760837363111,-1581.98124714,0.00024142,2]
[391796324,1760837363136,-348.3,0.00028975,2]
[391796325,1760837363159,-696.6,0.00031609,2]
[391796326,1760837363184,-250.0,0.00033418,2]
[391796327,1760837363204,-380.0,0.0003359,2]
[391796328,1760837363232,-1044.91,0.00034243,2]
[391796329,1760837363257,-1037.33078998,0.000359,2]
[391796330,1760837363279,-1999.0,0.00035999,120]
[391796331,1760837363304,-108698.29610919,0.00036,5]
[391796332,1760837363331,-396.54,0.00036,2]
[391796333,1760837365069,6617.85,0.00034,14]
[391796334,1760837376463,321.7,0.00031921,2]
[391796335,1760837376870,643.41,0.00034823,2]
[391796336,1760837403256,150.5979241,0.00035366,2]
[391796337,1760837412869,190.28312295,0.0003399,60]
[391796339,1760837424706,342.4948442,0.0003399,2]
[391796340,1760837426537,300.0,0.00034668,30]
[391796341,1760837428343,370.59330763,0.0003399,2]
[391796396,1760837431955,-728.40021491,0.0003399,2]
[391796399,1760837432052,-1271.59978509,0.0003399,2]
[391796400,1760837432063,-1649.00389895,0.0003399,2]
[391796423,1760837433087,526.0,0.0002904,120]
[391796437,1760837437723,-3185.48191105,0.0003399,2]
[391796438,1760837437735,-2814.70574874,0.0003399,2]
[391796439,1760837437746,-3912.81558953,0.0003399,2]
[391796440,1760837437757,-18384.84810316,0.0003399,2]
[391796441,1760837437766,-189.5913888,0.0003399,2]
[391796442,1760837437775,-1400.04522313,0.0003399,2]
[391796443,1760837437784,-4613.10988231,0.0003399,2]
[391796444,1760837437795,-1295.67544814,0.0003399,2]
[391796445,1760837437805,-2623.7640301,0.0003399,2]
[391796446,1760837437815,-1607.44801557,0.0003399,2]
[391796449,1760837437825,-1018.95959998,0.0003399,2]
[391796451,1760837437836,-455.18249544,0.0003399,2]
[391796453,1760837437852,-1603.22358985,0.0003399,2]
[391796455,1760837437863,-675.67,0.0003399,2]
[391796456,1760837437875,-425.78757059,0.0003399,2]
[391796457,1760837437885,-2294.75072932,0.0003399,2]
[391796458,1760837437895,-652.64378413,0.0003399,2]
[391796459,1760837437904,-203.4235005,0.0003399,2]
[391796460,1760837437913,-2920.0,0.0003399,2]
[391796461,1760837437922,-10747.14736084,0.0003399,2]
[391796462,1760837437931,-385.70784611,0.0003399,2]
[391796463,1760837437941,-1445.87279266,0.0003399,2]
[391796464,1760837437956,-201.79425047,0.0003399,2]
[391796465,1760837437965,-3153.95038712,0.0003399,2]
[391796466,1760837437975,-365.44240343,0.0003399,2]